bitfinex/quotes_ETHUSD_20240719
["timestamp","ask_amount","ask_price","bid_price","bid_amount"]
[1721422424653,1.34692147,3511.6,3511.3,0.06896759]
[1721422424988,0.79692147,3511.6,3511.2,2.84801]
[1721422425196,4.04195355,3511.9,3511.3,2.84794]
[1721422425407,0.55,3511.8,3511.3,2.91690759]
[1721422427350,3.39754,3511.8,3511.3,2.91690759]
[1721422427584,3.39754,3511.8,3511.3,0.06896759]
[1721422427785,0.55,3511.8,3511.3,0.06896759]
[1721422427976,0.55,3511.8,3511.2,2.84795]
[1721422428178,0.55,3511.8,3511.4,0.06892808]
[1721422428380,0.55,3511.8,3511.3,2.91686759]
[1721422428598,0.55,3511.8,3511.5,0.06888858]
[1721422428892,0.55,3511.8,3511.6,0.06884908]
[1721422429254,0.55,3511.8,3511.3,2.8479]
[1721422429455,0.55,3511.8,3511.4,0.06892808]
[1721422433500,2.84764,3511.7,3511.1,2.84806]
[1721422433666,2.84764,3511.7,3511.4,0.06884752]
[1721422433993,2.84764,3511.7,3511.1,2.84806]
[1721422434461,2.84764,3511.7,3511.2,0.06892653]
[1721422434662,2.84764,3511.7,3511.1,2.84806]
[1721422434875,2.84764,3511.7,3511.2,0.06859319]
[1721422435073,2.84764,3511.7,3511.1,2.84803]
[1721422435286,2.84764,3511.7,3511.2,2.91660319]
[1721422435757,0.55,3511.8,3511.2,2.91660319]
[1721422435998,0.55,3511.8,3511.2,2.91655319]
[1721422436202,4.35344536,3511.8,3511.2,2.91655319]
[1721422437794,1.50589536,3511.8,3511.3,2.84787]
[1721422438005,0.95589536,3511.8,3511.3,2.84787]
[1721422438204,0.95589536,3511.8,3511.4,0.06851418]
[1721422438569,0.95589536,3511.8,3511.2,5.69591]
[1721422438764,0.95589536,3511.8,3511.5,0.06847468]
[1721422438963,0.95589536,3511.8,3511.3,2.84793]
[1721422439184,2.84747,3511.9,3511.6,0.06843518]
[1721422439370,2.84747,3511.9,3511.3,2.84793]
[1721422439586,2.84747,3511.9,3511.7,0.06839569]
[1721422439782,2.84747,3511.9,3511.3,2.84793]
[1721422439981,2.84747,3511.9,3511.8,0.06835619]
[1721422440301,3.39747,3511.9,3511.8,0.06835619]
[1721422440497,3.39747,3511.9,3511.3,2.84793]
[1721422440703,3.39747,3511.9,3511.8,0.06835619]
[1721422440913,3.39747,3511.9,3511.3,2.84793]
[1721422441131,3.39747,3511.9,3511.8,0.06835619]
[1721422441283,3.39747,3511.9,3511.3,2.84793]
[1721422441488,3.39747,3511.9,3511.4,0.06792752]
[1721422442502,2.8475,3511.9,3511.4,0.06792752]
[1721422442687,2.84766,3511.7,3511.4,0.06792752]
[1721422442900,2.84766,3511.7,3511.1,2.84804]
[1721422443083,2.84766,3511.7,3511.5,0.06788802]
[1721422443292,3.417175,3511.7,3511.1,2.84804]
[1721422443501,3.417175,3511.7,3511.2,0.06800653]
[1721422443702,3.417175,3511.7,3511.1,2.84804]
[1721422443905,3.417175,3511.7,3511.3,0.06796702]
[1721422444105,3.417175,3511.7,3511.2,2.84802]
[1721422444106,0.569515,3511.7,3511.2,2.91602653]
[1721422444429,0.569515,3511.7,3511.4,0.06792752]
[1721422444590,0.569515,3511.7,3511.3,0.06796702]
[1721422444789,0.569515,3511.7,3511.5,0.06788802]
[1721422445025,0.569515,3511.7,3511.4,0.06792752]
[1721422445238,0.569515,3511.7,3511.6,0.06784852]
[1721422445527,4.33215831,3512.3,3511.7,2.8476]
[1721422445728,1.48496831,3512.3,3511.7,2.8476]
[1721422446080,1.48496831,3512.3,3511.8,0.06771258]
[1721422446313,1.48496831,3512.3,3511.9,2.84745]
[1721422446520,1.48496831,3512.3,3511.9,2.91509946]
[1721422446697,1.48496831,3512.3,3511.9,0.06764946]
[1721422446882,1.48496831,3512.3,3511.7,5.69512]
[1721422447093,1.48496831,3512.3,3511.8,2.91516681]
[1721422447311,1.48496831,3512.3,3511.9,2.84745]
[1721422447793,1.48496831,3512.3,3512.0,0.06760783]
[1721422448315,1.48496831,3512.3,3512.0,2.91497783]
[1721422449126,1.48496831,3512.3,3512.0,0.06760783]
[1721422450699,1.48496831,3512.3,3512.1,2.84729]
[1721422451089,1.48496831,3512.3,3512.2,0.06752885]
[1721422451394,1.48496831,3512.3,3511.9,5.69483]
[1721422451395,1.48496831,3512.3,3512.0,2.84736]
[1721422451607,1.48496831,3512.3,3512.2,0.06752885]
[1721422451821,1.48496831,3512.3,3512.1,0.06756834]
[1721422452149,1.48496831,3512.3,3512.2,0.06752885]
[1721422452525,1.48496831,3512.3,3512.0,2.84736]
[1721422452821,1.48496831,3512.3,3512.2,0.06752885]
[1721422453007,1.48496831,3512.3,3512.1,0.06756834]
[1721422453324,1.48496831,3512.3,3512.2,0.06752885]
[1721422453731,1.48496831,3512.3,3511.8,2.84748]
[1721422453901,1.48496831,3512.3,3512.2,0.06752885]
[1721422454092,1.48496831,3512.3,3511.9,2.84744]
[1721422454294,1.48496831,3512.3,3512.0,0.06760783]
[1721422455698,1.48496831,3512.3,3511.8,2.84748]
[1721422455897,1.48496831,3512.3,3511.9,0.06764732]
[1721422456417,2.84729,3512.1,3511.9,0.06764732]
[1721422456620,2.84738,3512.0,3511.9,0.06764732]
[1721422456805,2.84738,3512.0,3511.4,12.71371]
[1721422457011,2.84738,3512.0,3511.9,0.06764732]
[1721422457240,2.84728,3512.2,3511.9,0.06764732]
[1721422457406,2.84728,3512.2,3511.6,2.84766]
[1721422457735,1.48496831,3512.3,3511.5,2.84775]
[1721422457944,4.33211831,3512.3,3511.7,2.9152963]
[1721422458241,4.33211831,3512.3,3511.7,5.69513]
[1721422458242,2.84715,3512.3,3511.7,5.69513]
[1721422458540,5.25541,3512.4,3511.8,2.91522681]
[1721422458747,5.25541,3512.4,3511.9,2.84745]
[1721422459237,5.25541,3512.4,3512.0,0.06533526]
[1721422461030,2.4083,3512.4,3512.0,0.06533526]
[1721422461202,2.847,3512.5,3512.0,0.06533526]
[1721422461403,2.84689,3512.6,3512.0,0.06533526]
[1721422462227,2.84689,3512.6,3512.1,2.84729]
[1721422462435,2.84698,3512.5,3512.0,0.06533526]
[1721422462739,2.84698,3512.5,3512.1,0.06520453]
[1721422463223,2.84698,3512.5,3511.9,2.84739]
[1721422463700,2.84698,3512.5,3512.0,0.06524402]
[1721422464235,4.04147355,3512.5,3512.0,0.06524402]
[1721422464413,2.84713,3512.3,3512.0,0.06524402]
[1721422464616,2.84713,3512.3,3511.8,2.84753]
[1721422464808,2.84713,3512.3,3512.1,0.06520453]
[1721422465019,2.84713,3512.3,3511.8,2.84753]
[1721422465208,2.84713,3512.3,3512.2,0.06516505]
[1721422465699,2.84713,3512.3,3511.8,2.84753]
[1721422465897,2.2542,3512.4,3511.9,2.91273351]
[1721422466409,5.10127,3512.4,3511.9,2.91273351]
[1721422468109,3.89916,3512.3,3511.9,0.06528351]
[1721422468311,2.84729,3512.2,3511.9,0.06528351]
[1721422468643,2.84729,3512.2,3511.7,2.84762]
[1721422468841,2.84729,3512.2,3512.0,0.06524402]
[1721422469143,2.84729,3512.2,3512.1,0.06520453]
[1721422469438,2.84729,3512.2,3511.6,2.84764]
[1721422469634,2.84729,3512.2,3512.1,0.06520453]
[1721422469825,2.84729,3512.2,3511.6,2.84764]
[1721422470132,2.84729,3512.2,3511.6,4.156186]
[1721422470335,2.84729,3512.2,3511.7,0.0653625]
[1721422470640,1.052,3512.3,3511.8,2.84753]
[1721422470853,1.052,3512.3,3511.8,5.69501]
[1721422471151,6.29575355,3512.4,3511.9,3.86731536]
[1721422471301,2.84706,3512.4,3511.9,3.86731536]
[1721422471505,2.24649355,3512.5,3511.9,3.86731536]
[1721422471747,1.19449355,3512.5,3511.9,3.86726536]
[1721422471930,1.19449355,3512.6,3512.0,0.63442654]
[1721422472240,1.19449355,3512.6,3512.1,2.84724]
[1721422472418,1.19449355,3512.6,3512.1,2.91244667]
[1721422472616,4.04140355,3512.6,3512.1,2.91244667]
[1721422473007,4.04140355,3512.6,3512.1,0.06520667]
[1721422473240,2.84707,3512.4,3512.1,0.06520667]
[1721422473614,2.84707,3512.4,3511.9,2.84739]
[1721422473805,2.84707,3512.4,3512.2,0.06516718]
[1721422474125,2.84707,3512.4,3512.3,0.0651277]
[1721422474330,2.84707,3512.4,3511.9,2.84739]
[1721422474542,2.84707,3512.4,3512.0,0.06524616]
[1721422475523,2.84707,3512.4,3511.8,2.84749]
[1721422475732,2.84707,3512.4,3511.9,0.06528565]
[1721422476328,1.19449355,3512.5,3512.0,2.84737]
[1721422476644,1.19449355,3512.5,3512.1,0.06439202]
[1721422477409,2.84706,3512.4,3512.1,0.06439202]
[1721422477733,4.04155355,3512.4,3512.2,0.06435254]
[1721422477909,4.04155355,3512.4,3511.8,2.84748]
[1721422478109,4.04155355,3512.4,3511.9,0.064471]
[1721422479533,6.88867355,3512.4,3511.9,0.064471]
[1721422480057,2.84714,3512.3,3511.9,0.064471]
[1721422480231,2.84726,3512.2,3511.9,0.064471]
[1721422480430,2.84726,3512.2,3511.6,2.84763]
[1721422480629,2.84726,3512.2,3512.0,0.06443151]
[1721422480825,2.84726,3512.2,3511.6,2.84763]
[1721422481060,2.84726,3512.2,3512.1,0.06439202]
[1721422481257,1.19449355,3512.3,3511.7,2.84762]
[1721422481472,4.04165355,3512.3,3512.1,0.06439202]
[1721422481617,4.04165355,3512.3,3511.7,2.84762]
[1721422481818,4.04165355,3512.3,3511.7,4.391492]
[1721422481819,2.84726,3512.2,3511.7,4.391492]
[1721422482541,2.8473,3512.1,3511.7,1.543872]
[1721422483465,2.84728,3512.2,3511.7,1.543872]
[1721422483634,4.04177355,3512.2,3511.7,1.543872]
[1721422483828,6.33007355,3512.2,3511.6,2.84767]
[1721422484039,2.84743,3512.0,3511.4,7.39]
[1721422484235,2.84743,3512.0,3511.1,5.20888]
[1721422484236,2.84756,3511.8,3511.1,2.84808]
[1721422484439,2.8477,3511.6,3510.9,2.84826]
[1721422484701,2.8477,3511.6,3511.0,1.544745]
[1721422484819,4.04219355,3511.6,3511.0,1.544745]
[1721422485024,2.8477,3511.6,3511.0,1.544745]
[1721422485254,4.04219355,3511.6,3511.0,1.544745]
[1721422485989,2.84786,3511.4,3511.0,1.544745]
[1721422486122,2.84786,3511.4,3511.1,1.1783005]
[1721422486322,5.69547,3511.6,3511.1,1.1783005]
[1721422487300,2.8477,3511.6,3511.1,1.1783005]
[1721422487627,1.19422468,3511.8,3511.6,5.6954]
[1721422487884,2.84627,3513.4,3512.9,2.84665]
[1721422487885,1.19430033,3513.2,3512.9,2.84665]
[1721422488037,1.19430033,3513.4,3513.0,0.569344]
[1721422488226,1.19430033,3514.0,3513.1,2.524]
[1721422488425,2.84553,3514.3,3513.1,2.58797579]
[1721422488827,2.84553,3514.3,3513.3,2.84624]
[1721422489372,2.84553,3514.3,3513.4,0.0638574]
[1721422489668,2.84571,3514.1,3513.4,0.0638574]
[1721422489883,2.84589,3513.9,3513.4,0.0638574]
[1721422490043,2.524,3513.6,3513.4,0.0638574]
[1721422490366,2.524,3513.6,3512.9,2.8466]
[1721422490864,2.524,3513.6,3513.0,2.84656]
[1721422491048,2.524,3513.6,3513.0,0.06153407]
[1721422491241,1.086993,3513.5,3513.0,0.06153407]
[1721422491464,1.086993,3513.5,3512.9,2.84665]
[1721422491654,1.086993,3513.5,3513.1,0.06151593]
[1721422491977,1.086993,3513.5,3513.2,0.06147647]
[1721422492328,1.086993,3513.5,3512.9,2.84665]
[1721422492641,1.086993,3513.5,3513.0,0.0615714]
[1721422493864,1.086993,3513.5,3513.0,2.9081214]
[1721422495460,0.55,3513.5,3513.0,2.9081214]
[1721422495643,0.55,3513.6,3513.0,2.9081214]
[1721422496930,5.36976,3514.0,3513.2,2.84636]
[1721422497130,5.36976,3514.0,3513.4,2.84623]
[1721422497332,0.04957468,3515.0,3514.9,5.69006]
[1721422497643,2.08463792,3516.0,3514.9,0.06081981]
[1721422497644,2.84436,3515.8,3514.9,0.06081981]
[1721422497977,5.95265445,3515.7,3514.9,0.06081981]
[1721422498146,5.95265445,3515.7,3514.9,2.90580981]
[1721422498675,2.524,3515.1,3514.9,2.90580981]
[1721422498882,2.524,3515.1,3514.9,0.06081981]
[1721422499249,2.524,3515.1,3514.7,2.84517]
[1721422499444,2.524,3515.1,3515.0,0.06077612]
[1721422499650,3.074,3515.1,3514.7,2.84517]
[1721422499874,2.524,3515.1,3515.0,2.90572612]
[1721422500077,2.524,3515.1,3515.0,2.84495]
[1721422500375,2.524,3515.1,3515.0,2.90572612]
[1721422500780,2.524,3515.1,3515.0,0.06077612]
[1721422500987,2.7764,3515.1,3515.0,0.06077612]
[1721422501186,2.7764,3515.1,3514.6,2.84523]
[1721422501478,2.7764,3515.1,3514.3,10.23544]
[1721422501479,2.524,3515.1,3515.0,0.06077612]
[1721422501649,2.524,3515.1,3514.7,2.84517]
[1721422502269,2.524,3515.1,3514.8,0.06085497]
[1721422502644,2.524,3515.1,3514.7,2.84517]
[1721422502879,2.524,3515.1,3514.9,0.06070894]
[1721422503058,2.524,3515.1,3514.8,0.06074837]
[1721422503472,2.524,3515.1,3514.7,2.84517]
[1721422503640,2.524,3515.1,3514.9,0.06070894]
[1721422503843,2.524,3515.1,3514.8,0.06074837]
[1721422504043,2.524,3515.1,3515.0,0.06066952]
[1721422504365,3.074,3515.1,3515.0,0.06066952]
[1721422504568,3.074,3515.1,3514.7,2.84517]
[1721422504771,3.074,3515.1,3515.0,0.06066952]
[1721422504981,3.074,3515.1,3514.7,2.84517]
[1721422505152,3.074,3515.1,3515.0,0.06066952]
[1721422505353,3.074,3515.1,3514.7,2.84517]
[1721422505583,3.074,3515.1,3514.8,0.06074837]
[1721422505992,3.074,3515.1,3514.7,2.84517]
[1721422506290,3.074,3515.1,3514.9,0.06070894]
[1721422506448,3.074,3515.1,3514.8,0.06074837]
[1721422506646,3.074,3515.1,3513.8,7.39]
[1721422506647,2.84523,3514.7,3513.8,7.39]
[1721422506873,3.1140302,3515.0,3513.4,2.84624]
[1721422506874,2.524,3513.9,3513.4,2.84624]
[1721422507085,2.524,3513.5,3513.2,2.84635]
[1721422507250,2.524,3513.5,3513.0,2.84651]
[1721422507449,2.524,3513.5,3513.0,2.84656]
[1721422508846,2.524,3513.1,3512.8,2.84672]
[1721422509399,2.524,3513.1,3512.4,10.23705]
[1721422509594,2.524,3512.7,3512.4,7.39]
[1721422511197,2.524,3512.7,3512.6,2.84689]
[1721422511600,2.84616,3513.5,3512.4,7.39]
[1721422511601,5.84601,3513.7,3512.8,2.84672]
[1721422511902,2.524,3513.2,3513.0,2.84652]
[1721422514200,2.524,3513.2,3513.1,2.84648]
[1721422514568,2.524,3513.2,3513.1,3.415792]
[1721422514770,3.074,3513.6,3513.1,0.569312]
[1721422514971,3.074,3513.6,3513.1,2.84648]
[1721422515270,3.074,3513.6,3513.2,2.8464]
[1721422516806,2.524,3513.6,3513.2,2.8464]
[1721422517493,2.524,3513.6,3513.5,2.84616]
[1721422518128,2.524,3513.6,3513.5,0.05561883]
[1721422518329,2.524,3513.6,3512.6,2.84681]
[1721422518330,2.524,3513.6,3513.2,2.8464]
[1721422518544,2.524,3513.6,3512.6,2.84681]
[1721422518545,2.524,3513.6,3513.3,2.90201775]
[1721422518692,5.26863,3514.1,3513.3,0.34589953]
[1721422519050,2.524,3513.7,3512.5,2.84689]
[1721422519210,2.524,3513.7,3512.6,0.0569194]
[1721422519530,2.524,3513.7,3513.6,2.84608]
[1721422519855,2.524,3513.7,3513.6,2.90165618]
[1721422520046,2.524,3513.7,3513.6,0.05557618]
[1721422520400,2.524,3513.7,3513.5,2.84614]
[1721422520609,2.524,3513.7,3513.6,0.05555485]
[1721422521194,2.524,3513.7,3513.6,2.90163485]
[1721422521420,2.524,3513.7,3513.6,3.47642234]
[1721422525441,2.524,3513.7,3513.6,0.05555485]
[1721422528107,2.524,3513.7,3513.3,2.84632]
[1721422528310,2.524,3513.7,3513.2,2.84635]
[1721422528311,2.524,3513.7,3513.4,2.90181909]
[1721422531065,2.524,3513.7,3513.4,0.05563909]
[1721422531349,2.524,3513.7,3513.2,2.84634]
[1721422531738,2.524,3513.7,3513.3,0.05564018]
[1721422532325,2.524,3513.7,3513.3,1.0848372]
[1721422532525,2.524,3513.7,3513.3,3.9311072]
[1721422532739,2.524,3513.7,3513.3,1.0848372]
[1721422532953,2.524,3513.7,3513.6,2.84608]
[1721422533125,2.524,3513.7,3513.6,2.90160182]
[1721422533453,2.524,3513.7,3513.6,3.5792987]
[1721422533755,2.524,3514.1,3513.8,2.8459]
[1721422534114,2.524,3514.1,3513.9,0.05537894]
[1721422535758,0.1542345,3515.9,3515.1,2.3223]
[1721422536073,0.1542345,3515.9,3515.2,0.05486633]
[1721422536213,0.1542345,3515.9,3515.6,2.84439]
[1721422536423,0.1542345,3515.9,3515.4,2.84461]
[1721422536424,0.1542345,3515.9,3515.2,0.05486633]
[1721422536616,0.1542345,3515.9,3515.8,2.8443]
[1721422537040,0.1542345,3515.9,3515.8,2.89874444]
[1721422537241,0.1542345,3515.9,3515.8,5.74304444]
[1721422541034,0.1542345,3515.9,3515.8,5.79992361]
[1721422542268,0.1542345,3515.9,3515.8,8.64422361]
[1721422542470,0.1542345,3515.9,3515.8,9.40981589]
[1721422542771,0.1542345,3515.9,3515.8,9.10274764]
[1721422545278,0.1542345,3515.9,3515.8,6.25844764]
[1721422546077,0.1542345,3515.9,3515.8,9.10274764]
[1721422547255,0.1542345,3515.9,3515.8,6.25844764]
[1721422547870,0.1542345,3515.9,3515.8,9.10274764]
[1721422548231,0.1542345,3515.9,3515.8,6.25844764]
[1721422548780,0.1542345,3515.9,3515.8,9.10274764]
[1721422550256,0.1542345,3515.9,3515.8,6.25844764]
[1721422550478,0.1542345,3515.9,3515.8,6.25762866]
[1721422557150,2.6782345,3515.9,3515.8,0.05444444]
[1721422557379,2.6782345,3515.9,3515.5,2.84452]
[1721422557586,2.6782345,3515.9,3515.6,0.04888557]
[1721422558289,2.524,3515.7,3515.6,0.04888557]
[1721422558509,2.524,3515.8,3515.6,0.04888557]
[1721422558662,2.524,3515.8,3515.5,2.84453]
[1721422558864,2.524,3515.8,3515.7,0.04715409]
[1721422559980,2.524,3515.8,3515.4,2.84461]
[1721422560290,2.524,3515.8,3515.5,2.84453]
[1721422560593,2.524,3515.8,3515.5,2.8917629]
[1721422561160,2.524,3515.8,3515.5,0.0472329]
[1721422561359,2.524,3515.8,3515.3,2.84463]
[1721422561691,2.524,3515.8,3515.4,0.04727231]
[1721422562873,2.524,3515.8,3515.4,2.89187231]
[1721422564271,2.524,3515.8,3515.5,2.84449]
[1721422564699,2.524,3515.8,3515.6,0.04719349]
[1721422567131,2.524,3515.8,3515.2,7.39]
[1721422567288,2.524,3515.8,3515.7,0.04715409]
[1721422567623,2.524,3515.8,3515.3,2.8447]
[1721422567800,2.524,3515.8,3515.7,0.04718905]
[1721422568209,2.524,3515.8,3515.3,2.84465]
[1721422568417,2.524,3515.8,3515.4,0.04730728]
[1721422569523,2.524,3515.8,3515.4,2.89191728]
[1721422570198,2.524,3515.8,3515.4,0.04730728]
[1721422570403,2.524,3515.8,3515.4,4.45725473]
[1721422570603,2.524,3515.8,3515.5,2.89180787]
[1721422570828,2.524,3515.8,3515.5,0.04726787]
[1721422571339,2.524,3515.8,3515.3,2.84469]
[1721422571545,2.524,3515.8,3515.6,0.04722846]
[1721422571839,2.524,3515.8,3515.7,0.04718905]
[1721422572213,2.524,3515.8,3515.3,2.84466]
[1721422572419,2.524,3515.8,3515.7,0.04718905]
[1721422572617,2.524,3515.8,3515.5,2.84448]
[1721422572915,2.524,3515.8,3515.7,0.04718905]
[1721422573437,2.524,3515.8,3515.4,4.168076]
[1721422573601,2.524,3515.8,3515.7,0.04718905]
[1721422573804,0.1542345,3515.9,3515.6,2.8444]
[1721422574129,0.1542345,3515.9,3515.7,0.75412406]
[1721422574745,0.1542345,3515.9,3515.7,0.04718905]
[1721422575654,0.1542345,3515.9,3515.8,0.04714965]
[1721422576057,0.1542345,3515.9,3515.4,4.168036]
[1721422576356,0.1542345,3515.9,3515.8,0.04714965]
[1721422576561,0.1542345,3515.9,3515.5,2.84449]
[1721422576762,0.1542345,3515.9,3515.8,0.04714965]
[1721422576968,2.524,3515.7,3515.4,4.168086]
[1721422578117,2.524,3515.7,3515.5,0.04730177]
[1721422578461,2.524,3515.7,3515.4,4.168086]
[1721422578664,2.524,3515.7,3515.6,0.04726236]
[1721422578882,2.524,3515.7,3515.5,0.04730177]
[1721422579155,2.524,3515.7,3515.6,0.04726236]
[1721422579553,2.524,3515.7,3515.4,1.323466]
[1721422579762,2.524,3515.7,3515.6,0.04726236]
[1721422579934,2.524,3515.7,3515.5,0.04730177]
[1721422580150,2.524,3515.7,3515.6,0.04726236]
[1721422580446,2.524,3515.7,3515.4,1.323466]
[1721422580756,2.524,3515.7,3515.6,0.04726236]
[1721422580962,4.7801,3515.7,3515.5,0.04730177]
[1721422581164,7.62448,3515.7,3515.6,0.04726236]
[1721422581551,2.84449,3515.6,3515.2,7.39]
[1721422581743,2.84455,3515.5,3515.2,7.39]
[1721422582967,2.84455,3515.5,3515.1,3.0]
[1721422583275,2.84455,3515.5,3515.2,0.98888476]
[1721422583480,2.84455,3515.5,3514.9,3.5941025]
[1721422583640,2.84455,3515.5,3515.0,3.20565701]
[1721422583842,2.84455,3515.5,3515.1,5.47221745]
[1721422584179,2.84455,3515.5,3515.0,0.73343956]
[1721422584354,2.84455,3515.5,3515.1,0.98889082]
[1721422584683,2.84455,3515.5,3515.0,0.73343956]
[1721422584834,2.84455,3515.5,3515.1,0.98889166]
[1721422585061,2.84455,3515.5,3515.0,0.73343956]
[1721422585260,2.84455,3515.5,3515.1,0.98888277]
[1721422585561,2.84462,3515.4,3515.0,0.73343956]
[1721422585989,8.21303,3515.6,3515.0,0.73343956]
[1721422586188,5.36849,3515.6,3515.0,0.73343956]
[1721422586897,2.8446,3515.5,3515.0,0.73343956]
[1721422587463,2.84463,3515.4,3515.0,0.73343956]
[1721422589402,2.84458,3515.5,3515.0,0.73343956]
[1721422589760,2.84462,3515.4,3515.0,0.73343956]
[1721422590597,2.84462,3515.4,3514.8,3.0]
[1721422590900,2.84475,3515.3,3514.7,3.0]
[1721422592586,2.84479,3515.2,3514.7,3.0]
[1721422592784,2.84479,3515.2,3514.3,0.5941025]
[1721422592785,2.524,3515.2,3514.3,0.5941025]
[1721422592983,2.84524,3514.7,3514.4,0.04629514]
[1721422593195,5.36916,3514.8,3514.4,0.04629514]
[1721422593409,2.84532,3514.6,3513.8,7.9841025]
[1721422593735,2.84532,3514.6,3513.8,7.39]
[1721422593736,2.524,3514.3,3513.8,7.39]
[1721422593872,2.84546,3514.4,3513.9,0.04647334]
[1721422594079,2.524,3514.1,3513.9,0.04647334]
[1721422594279,2.524,3514.1,3513.6,2.84607]
[1721422594585,2.84553,3514.3,3514.0,0.04643706]
[1721422594810,2.84553,3514.3,3513.6,2.84607]
[1721422594811,2.524,3514.1,3513.6,2.84607]
[1721422595929,2.524,3514.1,3513.7,2.84599]
[1721422596112,2.84553,3514.3,3513.7,2.84599]
[1721422596312,2.524,3514.2,3513.7,2.84599]
[1721422596519,2.524,3514.2,3513.7,3.415196]
[1721422597204,5.36965,3514.2,3513.7,0.569206]
[1721422598032,5.16459,3514.5,3513.7,0.569206]
[1721422598033,2.8455,3514.4,3513.7,0.569206]
[1721422598340,2.524,3514.5,3513.8,2.84585]
[1721422598543,5.36936,3514.5,3513.9,0.6261096]
[1721422598854,3.129309,3515.2,3513.3,7.39]
[1721422598855,2.84593,3513.8,3513.3,7.39]
[1721422599000,2.524,3513.5,3513.3,7.39]
[1721422599205,2.524,3513.5,3513.1,2.84641]
[1721422599429,5.28438,3513.6,3513.2,0.569299]
[1721422599739,5.28438,3513.6,3512.7,7.39]
[1721422599740,2.84647,3513.2,3512.7,7.39]
[1721422600060,2.524,3512.9,3512.7,7.39]
[1721422603764,2.524,3512.9,3512.6,2.84688]
[1721422605347,2.524,3512.9,3512.7,2.84677]
[1721422608149,2.524,3512.9,3512.8,0.04562747]
[1721422608548,2.524,3512.9,3512.7,2.84677]
[1721422608881,2.524,3512.9,3512.8,0.04562747]
[1721422609372,2.524,3512.9,3512.7,2.84677]
[1721422609560,2.524,3512.9,3512.8,0.04562747]
[1721422609872,2.524,3512.9,3512.7,2.84677]
[1721422610316,2.524,3513.3,3512.8,0.0457316]
[1721422610528,2.524,3513.6,3512.9,2.84661]
[1721422610810,2.524,3513.6,3512.8,0.05692052]
[1721422611020,2.524,3513.6,3513.1,2.84642]
[1721422612311,2.524,3513.6,3513.5,2.89161536]
[1721422612616,2.524,3513.6,3513.5,0.04545536]
[1721422613275,3.01621,3513.6,3512.6,2.84686]
[1721422613515,2.524,3513.2,3512.9,2.84664]
[1721422613813,2.524,3513.2,3512.8,2.84668]
[1721422614190,2.524,3513.2,3512.9,2.84664]
[1721422619393,2.524,3513.2,3513.0,2.84654]
[1721422621722,2.524,3513.2,3512.8,37.84668]
[1721422621883,2.4289,3513.1,3512.8,37.84668]
[1721422622211,2.4289,3513.1,3512.9,2.84664]
[1721422622421,2.524,3513.2,3513.0,2.84656]
[1721422623131,2.524,3513.6,3513.1,2.89217208]
[1721422623288,2.524,3513.6,3513.3,2.84632]
[1721422623830,2.524,3513.6,3513.4,0.0455737]
[1721422627087,2.524,3513.6,3513.1,2.84642]
[1721422627283,2.524,3513.6,3513.5,0.04549741]
[1721422627485,2.524,3513.6,3513.2,2.84633]
[1721422627688,2.524,3513.6,3513.5,0.04549741]
[1721422627918,2.524,3513.6,3513.3,2.8463]
[1721422628119,1.051,3513.4,3513.3,2.8463]
[1721422628519,2.4289,3513.8,3513.3,2.8463]
[1721422628701,1.051,3513.4,3513.3,2.8463]
[1721422631929,2.4289,3513.8,3513.3,0.569275]
[1721422632092,2.3184,3514.2,3513.8,2.84591]
[1721422632293,1.051,3513.9,3513.8,2.9028224]
[1721422632601,1.051,3513.9,3513.8,2.84591]
[1721422633337,2.3184,3514.2,3513.9,2.84581]
[1721422633505,2.3329,3514.8,3514.2,2.84558]
[1721422634746,1.051,3514.3,3514.2,2.84558]
[1721422635112,2.3329,3514.8,3514.2,2.84558]
[1721422635324,1.051,3514.3,3514.2,2.84558]
[1721422637411,2.388,3514.2,3513.8,7.39]
[1721422637620,1.051,3514.0,3513.9,2.84579]
[1721422638120,1.051,3514.0,3513.9,2.89107176]
[1721422641634,2.388,3514.2,3514.1,2.84567]
[1721422641934,2.388,3514.2,3514.1,2.89081084]
[1721422642447,2.388,3514.2,3514.1,0.04514084]
[1721422642633,3.439,3514.2,3514.1,0.04514084]
[1721422642840,3.439,3514.2,3513.9,2.84578]
[1721422643140,2.388,3514.2,3514.0,0.04518028]
[1721422643333,2.388,3514.2,3513.9,5.69155]
[1721422643537,2.388,3514.2,3514.1,0.04514084]
[1721422643734,2.388,3514.2,3514.0,2.89093028]
[1721422643941,1.051,3514.1,3514.0,2.84575]
[1721422646226,1.051,3514.1,3513.8,2.84586]
[1721422646543,2.388,3514.2,3513.8,2.84586]
[1721422647254,2.388,3514.2,3513.9,2.84582]
[1721422647428,1.051,3514.0,3513.9,2.84582]
[1721422650326,1.051,3514.0,3513.5,2.8461]
[1721422650528,2.3792,3513.5,3513.3,7.39]
[1721422651822,2.3792,3513.5,3513.3,10.23632]
[1721422652057,2.3792,3513.5,3513.3,7.39]
[1721422653318,5.22537,3513.5,3513.4,0.04255073]
[1721422654433,6.032523,3513.5,3513.4,0.04255073]
[1721422654834,6.032523,3513.5,3512.8,10.23667]
[1721422655039,2.523,3513.2,3512.8,2.84667]
[1721422657752,2.523,3513.2,3512.6,2.84683]
[1721422658960,5.36944,3513.2,3512.4,10.82931904]
[1721422659174,2.523,3512.8,3512.5,0.98958271]
[1721422659346,2.523,3512.8,3512.4,10.23704]
[1721422660937,2.523,3512.8,3512.5,2.84697]
[1721422661143,2.523,3512.8,3512.5,2.88992099]
[1721422662970,4.9517,3512.8,3512.5,0.04295099]
[1721422663760,4.9517,3512.8,3512.6,2.84688]